[Event "December 5 Late 2023"]
[Site "https://www.chess.com"]
[Date "2023.12.05"]
[Round "8"]
[White "Shapiro, Viktor"]
[Black "Tari, Aryan"]
[Result "0-1"]
[Board "40"]
[TimeControl "180+1"]
[WhiteFideId "4175700"]
[BlackFideId "1510045"]
[WhiteElo "2531"]
[BlackElo "2984"]
[WhiteTeam "RUS"]
[BlackTeam "NOR"]
[WhiteClock "0:00:00"]
[BlackClock "0:00:04"]

1. c4 {[%clk 0:02:57]}  b6 {[%clk 0:02:58]} 2. Nf3 {[%clk 0:02:56]}  Bb7 {[%clk 0:02:57]} 3. Nc3 {[%clk 0:02:56]}  c5 {[%clk 0:02:53]} 4. e4 {[%clk 0:02:56]}  Nf6 {[%clk 0:02:45]} 5. d3 {[%clk 0:02:55]}  d6 {[%clk 0:02:41]} 6. g3 {[%clk 0:02:55]}  g6 {[%clk 0:02:38]} 7. Bg2 {[%clk 0:02:55]}  Bg7 {[%clk 0:02:38]} 8. O-O {[%clk 0:02:56]}  O-O {[%clk 0:02:38]} 9. a3 {[%clk 0:02:56]}  Nbd7 {[%clk 0:02:38]} 10. Rb1 {[%clk 0:02:56]}  Rc8 {[%clk 0:02:38]} 11. h3 {[%clk 0:02:53]}  a6 {[%clk 0:02:37]} 12. b4 {[%clk 0:02:51]}  cxb4 {[%clk 0:02:33]} 13. Rxb4 {[%clk 0:02:42]}  Rc7 {[%clk 0:02:30]} 14. Be3 {[%clk 0:02:40]}  b5 {[%clk 0:01:55]} 15. Nd5 {[%clk 0:02:31]}  Nxd5 {[%clk 0:01:54]} 16. cxd5 {[%clk 0:02:30]}  Nc5 {[%clk 0:01:48]} 17. Bd4 {[%clk 0:02:15]}  Bxd4 {[%clk 0:01:44]} 18. Nxd4 {[%clk 0:02:15]}  Qd7 {[%clk 0:01:45]} 19. h4 {[%clk 0:02:08]}  Rfc8 {[%clk 0:01:42]} 20. Kh2 {[%clk 0:02:04]}  Qd8 {[%clk 0:01:32]} 21. Bh3 {[%clk 0:02:03]}  Ra8 {[%clk 0:01:33]} 22. h5 {[%clk 0:02:03]}  Qf8 {[%clk 0:01:32]} 23. f4 {[%clk 0:01:53]}  Qg7 {[%clk 0:01:30]} 24. f5 {[%clk 0:01:46]}  a5 {[%clk 0:01:17]} 25. f6 {[%clk 0:01:44]}  exf6 {[%clk 0:01:17]} 26. Rxb5 {[%clk 0:01:45]}  f5 {[%clk 0:01:14]} 27. Nc6 {[%clk 0:01:24]}  Bxc6 {[%clk 0:01:10]} 28. dxc6 {[%clk 0:01:24]}  fxe4 {[%clk 0:01:10]} 29. dxe4 {[%clk 0:01:20]}  Qe5 {[%clk 0:00:48]} 30. hxg6 {[%clk 0:01:14]}  hxg6 {[%clk 0:00:48]} 31. Qd5 {[%clk 0:01:11]}  Qxe4 {[%clk 0:00:41]} 32. Qxe4 {[%clk 0:01:01]}  Nxe4 {[%clk 0:00:41]} 33. Bg2 {[%clk 0:00:56]}  Nc5 {[%clk 0:00:36]} 34. Bd5 {[%clk 0:00:54]}  Kg7 {[%clk 0:00:37]} 35. Re1 {[%clk 0:00:51]}  a4 {[%clk 0:00:28]} 36. Kg2 {[%clk 0:00:48]}  Rh8 {[%clk 0:00:26]} 37. Rh1 {[%clk 0:00:35]}  Re8 {[%clk 0:00:25]} 38. Rf1 {[%clk 0:00:32]}  Re5 {[%clk 0:00:21]} 39. Rd1 {[%clk 0:00:30]}  Re2+ {[%clk 0:00:16]} 40. Kg1 {[%clk 0:00:26]}  Re3 {[%clk 0:00:16]} 41. Kf2 {[%clk 0:00:24]}  Rxa3 {[%clk 0:00:16]} 42. Ra5 {[%clk 0:00:23]}  Rc3 {[%clk 0:00:14]} 43. Rb1 {[%clk 0:00:15]}  a3 {[%clk 0:00:12]} 44. Rb8 {[%clk 0:00:14]}  Nd3+ {[%clk 0:00:11]} 45. Kg2 {[%clk 0:00:13]}  Nc5 {[%clk 0:00:08]} 46. Rba8 {[%clk 0:00:11]}  Rd3 {[%clk 0:00:08]} 47. Bf3 {[%clk 0:00:11]}  d5 {[%clk 0:00:08]} 48. Rxc5 {[%clk 0:00:10]}  d4 {[%clk 0:00:06]} 49. Rb5 {[%clk 0:00:07]}  Rd2+ {[%clk 0:00:03]} 50. Kg1 {[%clk 0:00:07]}  a2 {[%clk 0:00:03]} 51. Rb7 {[%clk 0:00:04]}  Rxc6 {[%clk 0:00:02]} 52. Bxc6 {[%clk 0:00:04]}  Rd1+ {[%clk 0:00:03]} 53. Kf2 {[%clk 0:00:04]}  a1=Q {[%clk 0:00:04]} 54. Rxa1 {[%clk 0:00:03]}  Rxa1 {[%clk 0:00:05]} 55. Bd5 {[%clk 0:00:04]}  Kf6 {[%clk 0:00:01]} 56. Rxf7+ {[%clk 0:00:03]}  Ke5 {[%clk 0:00:02]} 57. Bf3 {[%clk 0:00:03]}  Ra2+ {[%clk 0:00:02]} 58. Kf1 {[%clk 0:00:03]}  d3 {[%clk 0:00:03]} 59. Rf4 {[%clk 0:00:02]}  g5 {[%clk 0:00:03]} 60. Re4+ {[%clk 0:00:01]}  Kf5 {[%clk 0:00:03]} 61. Rc4 {[%clk 0:00:01]}  Ra1+ {[%clk 0:00:03]} 62. Kf2 {[%clk 0:00:00]}  d2 {[%clk 0:00:04]} 0-1

[Event "December 5 Late 2023"]
[Site "https://www.chess.com"]
[Date "2023.12.05"]
[Round "8"]
[White "Sanchez Alvares, Kelvin Antonio"]
[Black "Hong, Andrew"]
[Result "0-1"]
[Board "41"]
[TimeControl "180+1"]
[WhiteFideId "3906680"]
[BlackFideId "2099438"]
[WhiteElo "2531"]
[BlackElo "2837"]
[WhiteTeam "VEN"]
[BlackTeam "USA"]
[WhiteClock "0:00:36"]
[BlackClock "0:01:42"]

1. e4 {[%clk 0:02:50]}  Nf6 {[%clk 0:02:26]} 2. e5 {[%clk 0:02:45]}  Nd5 {[%clk 0:02:26]} 3. c4 {[%clk 0:02:45]}  Nb6 {[%clk 0:02:26]} 4. d4 {[%clk 0:02:45]}  d6 {[%clk 0:02:27]} 5. f4 {[%clk 0:02:43]}  g6 {[%clk 0:02:27]} 6. Nc3 {[%clk 0:02:42]}  Bg7 {[%clk 0:02:28]} 7. Be3 {[%clk 0:02:42]}  O-O {[%clk 0:02:28]} 8. c5 {[%clk 0:02:42]}  dxc5 {[%clk 0:02:26]} 9. dxc5 {[%clk 0:02:42]}  N6d7 {[%clk 0:02:27]} 10. Nf3 {[%clk 0:02:41]}  b6 {[%clk 0:02:26]} 11. cxb6 {[%clk 0:02:31]}  axb6 {[%clk 0:02:27]} 12. Be2 {[%clk 0:02:29]}  Bb7 {[%clk 0:02:23]} 13. O-O {[%clk 0:02:28]}  e6 {[%clk 0:02:23]} 14. Qc2 {[%clk 0:02:26]}  Nc6 {[%clk 0:02:23]} 15. a3 {[%clk 0:02:26]}  Ne7 {[%clk 0:02:23]} 16. Rad1 {[%clk 0:02:24]}  Nd5 {[%clk 0:02:23]} 17. Nxd5 {[%clk 0:02:21]}  Bxd5 {[%clk 0:02:24]} 18. Bc4 {[%clk 0:02:18]}  c6 {[%clk 0:02:24]} 19. Bxd5 {[%clk 0:02:17]}  cxd5 {[%clk 0:02:24]} 20. Rc1 {[%clk 0:02:12]}  Qc8 {[%clk 0:02:14]} 21. Qb3 {[%clk 0:02:06]}  Qb7 {[%clk 0:02:14]} 22. Rc3 {[%clk 0:02:02]}  Rfc8 {[%clk 0:02:14]} 23. Rfc1 {[%clk 0:02:02]}  Bf8 {[%clk 0:02:14]} 24. Rxc8 {[%clk 0:01:59]}  Rxc8 {[%clk 0:02:14]} 25. Rxc8 {[%clk 0:01:57]}  Qxc8 {[%clk 0:02:15]} 26. h3 {[%clk 0:01:50]}  Bc5 {[%clk 0:02:13]} 27. Qc3 {[%clk 0:01:43]}  Bxe3+ {[%clk 0:02:13]} 28. Qxe3 {[%clk 0:01:42]}  Qc2 {[%clk 0:02:14]} 29. Qd4 {[%clk 0:01:36]}  Nc5 {[%clk 0:02:13]} 30. Kh2 {[%clk 0:01:23]}  Qc1 {[%clk 0:02:07]} 31. Qd2 {[%clk 0:01:19]}  Qc4 {[%clk 0:02:06]} 32. b4 {[%clk 0:01:10]}  Nd3 {[%clk 0:02:05]} 33. Kg3 {[%clk 0:01:10]}  Qb3 {[%clk 0:01:59]} 34. Qe3 {[%clk 0:01:05]}  Qxa3 {[%clk 0:01:57]} 35. Ne1 {[%clk 0:01:02]}  Qc1 {[%clk 0:01:47]} 36. Qxc1 {[%clk 0:00:50]}  Nxc1 {[%clk 0:01:48]} 37. Kf3 {[%clk 0:00:50]}  Na2 {[%clk 0:01:43]} 38. Ke3 {[%clk 0:00:36]}  Nxb4 {[%clk 0:01:42]} 0-1

[Event "December 5 Late 2023"]
[Site "https://www.chess.com"]
[Date "2023.12.05"]
[Round "8"]
[White "Lin, Bryan Enming"]
[Black "Djokic, Mihailo"]
[Result "0-1"]
[Board "44"]
[TimeControl "180+1"]
[WhiteFideId "30987121"]
[BlackFideId "976440"]
[WhiteElo "2516"]
[BlackElo "2707"]
[WhiteTeam "USA"]
[BlackTeam "SRB"]
[WhiteClock "0:01:23"]
[BlackClock "0:00:24"]

1. e4 {[%clk 0:03:00]}  c5 {[%clk 0:02:59]} 2. Nf3 {[%clk 0:03:00]}  d6 {[%clk 0:03:00]} 3. d4 {[%clk 0:03:01]}  cxd4 {[%clk 0:03:01]} 4. Nxd4 {[%clk 0:03:01]}  Nf6 {[%clk 0:03:01]} 5. Nc3 {[%clk 0:03:02]}  g6 {[%clk 0:03:01]} 6. Be3 {[%clk 0:03:01]}  Bg7 {[%clk 0:03:02]} 7. f3 {[%clk 0:03:02]}  O-O {[%clk 0:03:02]} 8. Qd2 {[%clk 0:03:03]}  Nc6 {[%clk 0:03:03]} 9. O-O-O {[%clk 0:03:03]}  Bd7 {[%clk 0:03:04]} 10. h4 {[%clk 0:02:58]}  Rc8 {[%clk 0:03:03]} 11. Kb1 {[%clk 0:02:51]}  Ne5 {[%clk 0:03:02]} 12. Nd5 {[%clk 0:02:45]}  Nxd5 {[%clk 0:03:02]} 13. exd5 {[%clk 0:02:46]}  Qc7 {[%clk 0:02:53]} 14. h5 {[%clk 0:02:41]}  Nc4 {[%clk 0:02:47]} 15. Bxc4 {[%clk 0:02:41]}  Qxc4 {[%clk 0:02:47]} 16. hxg6 {[%clk 0:02:35]}  fxg6 {[%clk 0:02:47]} 17. Nb3 {[%clk 0:02:09]}  Bf5 {[%clk 0:02:44]} 18. Rc1 {[%clk 0:02:09]}  a5 {[%clk 0:02:27]} 19. Bh6 {[%clk 0:02:03]}  a4 {[%clk 0:02:16]} 20. Bxg7 {[%clk 0:01:59]}  axb3 {[%clk 0:02:15]} 21. Bc3 {[%clk 0:01:53]}  bxc2+ {[%clk 0:01:16]} 22. Ka1 {[%clk 0:01:52]}  Ra8 {[%clk 0:01:16]} 23. a3 {[%clk 0:01:44]}  Rxa3+ {[%clk 0:00:26]} 24. bxa3 {[%clk 0:01:43]}  Qb3 {[%clk 0:00:26]} 25. Bb4 {[%clk 0:01:37]}  Ra8 {[%clk 0:00:25]} 26. Rxc2 {[%clk 0:01:31]}  Bxc2 {[%clk 0:00:26]} 27. Qc1 {[%clk 0:01:23]}  Qxb4 {[%clk 0:00:24]} 0-1

[Event "December 5 Late 2023"]
[Site "https://www.chess.com"]
[Date "2023.12.05"]
[Round "8"]
[White "Panesar Vedant"]
[Black "Rogov, Matfey"]
[Result "1-0"]
[Board "45"]
[TimeControl "180+1"]
[WhiteFideId "35033018"]
[BlackFideId "44191308"]
[WhiteElo "2697"]
[BlackElo "2515"]
[WhiteTeam "IND"]
[BlackTeam "RUS"]
[WhiteClock "0:00:27"]
[BlackClock "0:00:00"]

1. e4 {[%clk 0:02:59]}  e6 {[%clk 0:02:58]} 2. d4 {[%clk 0:02:57]}  d5 {[%clk 0:02:59]} 3. Nc3 {[%clk 0:02:58]}  Nf6 {[%clk 0:02:58]} 4. e5 {[%clk 0:02:57]}  Nfd7 {[%clk 0:02:59]} 5. f4 {[%clk 0:02:57]}  c5 {[%clk 0:02:59]} 6. Nf3 {[%clk 0:02:58]}  Nc6 {[%clk 0:03:00]} 7. Be3 {[%clk 0:02:58]}  Be7 {[%clk 0:03:00]} 8. Qd2 {[%clk 0:02:58]}  O-O {[%clk 0:02:58]} 9. dxc5 {[%clk 0:02:58]}  Qa5 {[%clk 0:02:58]} 10. a3 {[%clk 0:02:58]}  Bxc5 {[%clk 0:02:52]} 11. Bxc5 {[%clk 0:02:54]}  Nxc5 {[%clk 0:02:53]} 12. Bd3 {[%clk 0:02:45]}  Nxd3+ {[%clk 0:02:39]} 13. Qxd3 {[%clk 0:02:43]}  b6 {[%clk 0:02:10]} 14. O-O-O {[%clk 0:02:40]}  Ba6 {[%clk 0:02:06]} 15. Qd2 {[%clk 0:02:40]}  Rfd8 {[%clk 0:01:55]} 16. Kb1 {[%clk 0:02:31]}  b5 {[%clk 0:01:46]} 17. Nd4 {[%clk 0:02:26]}  Nxd4 {[%clk 0:01:44]} 18. Qxd4 {[%clk 0:02:27]}  Rdc8 {[%clk 0:01:33]} 19. Qd2 {[%clk 0:02:13]}  Rc4 {[%clk 0:01:15]} 20. g3 {[%clk 0:02:05]}  Rac8 {[%clk 0:00:50]} 21. Na2 {[%clk 0:01:19]}  Qc7 {[%clk 0:00:38]} 22. Rc1 {[%clk 0:01:14]}  Bb7 {[%clk 0:00:36]} 23. Rhe1 {[%clk 0:01:11]}  a5 {[%clk 0:00:35]} 24. b3 {[%clk 0:00:56]}  Rc6 {[%clk 0:00:25]} 25. Kb2 {[%clk 0:00:55]}  g6 {[%clk 0:00:18]} 26. h4 {[%clk 0:00:54]}  Rd8 {[%clk 0:00:12]} 27. h5 {[%clk 0:00:54]}  d4 {[%clk 0:00:12]} 28. h6 {[%clk 0:00:53]}  Qb6 {[%clk 0:00:08]} 29. g4 {[%clk 0:00:43]}  Rc5 {[%clk 0:00:08]} 30. f5 {[%clk 0:00:42]}  b4 {[%clk 0:00:06]} 31. axb4 {[%clk 0:00:39]}  axb4 {[%clk 0:00:07]} 32. Nxb4 {[%clk 0:00:37]}  Rc3 {[%clk 0:00:04]} 33. Na2 {[%clk 0:00:33]}  Rc5 {[%clk 0:00:02]} 34. fxg6 {[%clk 0:00:30]}  fxg6 {[%clk 0:00:00]} 35. Qg5 {[%clk 0:00:27]} 1-0

[Event "December 5 Late 2023"]
[Site "https://www.chess.com"]
[Date "2023.12.05"]
[Round "8"]
[White "Papasimakopoulos, Alexandros"]
[Black "Rees, Ioan"]
[Result "1-0"]
[Board "47"]
[TimeControl "180+1"]
[WhiteFideId "4244125"]
[BlackFideId "1801236"]
[WhiteElo "2647"]
[BlackElo "2503"]
[WhiteTeam "GRE"]
[BlackTeam "WLS"]
[WhiteClock "0:01:50"]
[BlackClock "0:00:17"]

1. d4 {[%clk 0:03:00]}  Nf6 {[%clk 0:02:59]} 2. c4 {[%clk 0:03:01]}  e6 {[%clk 0:03:00]} 3. Nc3 {[%clk 0:03:01]}  Bb4 {[%clk 0:03:00]} 4. Qc2 {[%clk 0:03:02]}  O-O {[%clk 0:02:59]} 5. a3 {[%clk 0:03:01]}  Bxc3+ {[%clk 0:03:00]} 6. Qxc3 {[%clk 0:03:02]}  b5 {[%clk 0:02:59]} 7. cxb5 {[%clk 0:03:01]}  c6 {[%clk 0:02:59]} 8. Bg5 {[%clk 0:02:55]}  cxb5 {[%clk 0:02:52]} 9. e3 {[%clk 0:02:55]}  Bb7 {[%clk 0:02:48]} 10. Nf3 {[%clk 0:02:56]}  Ne4 {[%clk 0:02:43]} 11. Bxd8 {[%clk 0:02:54]}  Nxc3 {[%clk 0:02:43]} 12. Be7 {[%clk 0:02:53]}  Re8 {[%clk 0:02:43]} 13. bxc3 {[%clk 0:02:53]}  Rxe7 {[%clk 0:02:43]} 14. Bxb5 {[%clk 0:02:54]}  d6 {[%clk 0:02:35]} 15. Be2 {[%clk 0:02:53]}  Rc7 {[%clk 0:02:34]} 16. Kd2 {[%clk 0:02:52]}  Nc6 {[%clk 0:02:33]} 17. Rhb1 {[%clk 0:02:46]}  Rac8 {[%clk 0:02:28]} 18. c4 {[%clk 0:02:34]}  Na5 {[%clk 0:02:24]} 19. Rb4 {[%clk 0:02:34]}  Bxf3 {[%clk 0:02:15]} 20. gxf3 {[%clk 0:02:31]}  Nxc4+ {[%clk 0:02:15]} 21. Bxc4 {[%clk 0:02:27]}  Rxc4 {[%clk 0:02:16]} 22. Rxc4 {[%clk 0:02:25]}  Rxc4 {[%clk 0:02:17]} 23. Rb1 {[%clk 0:02:26]}  g5 {[%clk 0:02:12]} 24. Rb4 {[%clk 0:02:22]}  Rxb4 {[%clk 0:02:00]} 25. axb4 {[%clk 0:02:23]}  Kf8 {[%clk 0:02:01]} 26. Kc3 {[%clk 0:02:20]}  Ke7 {[%clk 0:02:01]} 27. Kc4 {[%clk 0:02:18]}  Kd7 {[%clk 0:01:58]} 28. Kb5 {[%clk 0:02:19]}  Kc7 {[%clk 0:01:58]} 29. Ka6 {[%clk 0:02:19]}  Kb8 {[%clk 0:01:58]} 30. f4 {[%clk 0:02:12]}  gxf4 {[%clk 0:01:31]} 31. exf4 {[%clk 0:02:13]}  h6 {[%clk 0:01:23]} 32. f5 {[%clk 0:02:08]}  exf5 {[%clk 0:01:13]} 33. f4 {[%clk 0:02:01]}  Ka8 {[%clk 0:01:07]} 34. d5 {[%clk 0:02:01]}  Kb8 {[%clk 0:01:06]} 35. h4 {[%clk 0:02:00]}  h5 {[%clk 0:01:05]} 36. b5 {[%clk 0:01:59]}  Ka8 {[%clk 0:00:59]} 37. b6 {[%clk 0:01:58]}  f6 {[%clk 0:00:59]} 38. Kb5 {[%clk 0:01:51]}  Kb7 {[%clk 0:00:33]} 39. bxa7 {[%clk 0:01:49]}  Kxa7 {[%clk 0:00:17]} 40. Kc6 {[%clk 0:01:50]} 1-0

[Event "December 5 Late 2023"]
[Site "https://www.chess.com"]
[Date "2023.12.05"]
[Round "8"]
[White "Ehlvest, Jaan"]
[Black "Ladan, Nicholas"]
[Result "1-0"]
[Board "50"]
[TimeControl "180+1"]
[WhiteFideId "4500016"]
[BlackFideId "30918855"]
[WhiteElo "2643"]
[BlackElo "2491"]
[WhiteTeam "USA"]
[BlackTeam "USA"]
[WhiteClock "0:01:13"]
[BlackClock "0:00:11"]

1. e4 {[%clk 0:02:57]}  e5 {[%clk 0:02:59]} 2. Nf3 {[%clk 0:02:56]}  Nc6 {[%clk 0:03:00]} 3. Bb5 {[%clk 0:02:55]}  a6 {[%clk 0:03:00]} 4. Ba4 {[%clk 0:02:55]}  g6 {[%clk 0:03:01]} 5. c3 {[%clk 0:02:54]}  Bg7 {[%clk 0:03:01]} 6. d4 {[%clk 0:02:53]}  b5 {[%clk 0:02:58]} 7. Bc2 {[%clk 0:02:52]}  exd4 {[%clk 0:02:51]} 8. cxd4 {[%clk 0:02:51]}  d6 {[%clk 0:02:52]} 9. h3 {[%clk 0:02:48]}  Nf6 {[%clk 0:02:51]} 10. O-O {[%clk 0:02:48]}  O-O {[%clk 0:02:51]} 11. Nc3 {[%clk 0:02:47]}  Re8 {[%clk 0:02:47]} 12. Re1 {[%clk 0:02:47]}  h6 {[%clk 0:02:47]} 13. a3 {[%clk 0:02:43]}  Bb7 {[%clk 0:02:45]} 14. Bf4 {[%clk 0:02:37]}  Nh5 {[%clk 0:02:39]} 15. Be3 {[%clk 0:02:36]}  Ne7 {[%clk 0:02:31]} 16. Qd2 {[%clk 0:02:35]}  Kh7 {[%clk 0:02:30]} 17. Rad1 {[%clk 0:02:26]}  Qd7 {[%clk 0:02:16]} 18. d5 {[%clk 0:02:24]}  f5 {[%clk 0:02:12]} 19. exf5 {[%clk 0:02:00]}  Nxf5 {[%clk 0:02:12]} 20. g4 {[%clk 0:01:58]}  Nxe3 {[%clk 0:02:10]} 21. Rxe3 {[%clk 0:01:56]}  Rxe3 {[%clk 0:01:54]} 22. fxe3 {[%clk 0:01:56]}  Nf6 {[%clk 0:01:46]} 23. Nh4 {[%clk 0:01:54]}  Nxg4 {[%clk 0:01:37]} 24. Nxg6 {[%clk 0:01:45]}  Kg8 {[%clk 0:01:20]} 25. Bf5 {[%clk 0:01:44]}  Qe8 {[%clk 0:00:44]} 26. hxg4 {[%clk 0:01:41]}  c6 {[%clk 0:00:42]} 27. e4 {[%clk 0:01:38]}  cxd5 {[%clk 0:00:34]} 28. Nxd5 {[%clk 0:01:37]}  Qd8 {[%clk 0:00:24]} 29. Nde7+ {[%clk 0:01:28]}  Kf7 {[%clk 0:00:21]} 30. Qf2 {[%clk 0:01:22]}  Bf6 {[%clk 0:00:19]} 31. e5 {[%clk 0:01:20]}  Bg5 {[%clk 0:00:11]} 32. Be6+ {[%clk 0:01:13]}  Kg7 {[%clk 0:00:11]} 33. Qf7# {[%clk 0:01:13]} 1-0

[Event "December 5 Late 2023"]
[Site "https://www.chess.com"]
[Date "2023.12.05"]
[Round "8"]
[White "Omelja, Artem"]
[Black "Della Morte, German"]
[Result "1-0"]
[Board "51"]
[TimeControl "180+1"]
[WhiteFideId "14119846"]
[BlackFideId "113522"]
[WhiteElo "2626"]
[BlackElo "2483"]
[WhiteTeam "UKR"]
[BlackTeam "ARG"]
[WhiteClock "0:02:06"]
[BlackClock "0:01:55"]

1. d4 {[%clk 0:03:00]}  Nf6 {[%clk 0:02:58]} 2. c4 {[%clk 0:03:00]}  e6 {[%clk 0:02:59]} 3. Nf3 {[%clk 0:03:00]}  d5 {[%clk 0:02:59]} 4. Nc3 {[%clk 0:02:59]}  Be7 {[%clk 0:02:59]} 5. cxd5 {[%clk 0:02:58]}  exd5 {[%clk 0:02:59]} 6. Bf4 {[%clk 0:02:58]}  c6 {[%clk 0:02:59]} 7. e3 {[%clk 0:02:58]}  O-O {[%clk 0:02:59]} 8. h3 {[%clk 0:02:57]}  Bf5 {[%clk 0:02:59]} 9. Nh4 {[%clk 0:02:57]}  Bg6 {[%clk 0:02:59]} 10. Bd3 {[%clk 0:02:57]}  Nbd7 {[%clk 0:02:59]} 11. Nf5 {[%clk 0:02:56]}  Bb4 {[%clk 0:02:54]} 12. O-O {[%clk 0:02:52]}  Re8 {[%clk 0:02:52]} 13. Qb3 {[%clk 0:02:46]}  Bxc3 {[%clk 0:02:50]} 14. bxc3 {[%clk 0:02:47]}  Bxf5 {[%clk 0:02:49]} 15. Bxf5 {[%clk 0:02:46]}  Qb6 {[%clk 0:02:49]} 16. c4 {[%clk 0:02:43]}  Qxb3 {[%clk 0:02:44]} 17. axb3 {[%clk 0:02:44]}  Nf8 {[%clk 0:02:44]} 18. Be5 {[%clk 0:02:40]}  a6 {[%clk 0:02:43]} 19. Bxf6 {[%clk 0:02:39]}  gxf6 {[%clk 0:02:43]} 20. cxd5 {[%clk 0:02:40]}  cxd5 {[%clk 0:02:44]} 21. Ra5 {[%clk 0:02:40]}  Red8 {[%clk 0:02:43]} 22. Rc1 {[%clk 0:02:37]}  Ne6 {[%clk 0:02:43]} 23. b4 {[%clk 0:02:34]}  Rd6 {[%clk 0:02:41]} 24. b5 {[%clk 0:02:32]}  Rad8 {[%clk 0:02:30]} 25. bxa6 {[%clk 0:02:31]}  bxa6 {[%clk 0:02:30]} 26. Bd3 {[%clk 0:02:30]}  Ra8 {[%clk 0:02:29]} 27. Rc3 {[%clk 0:02:27]}  Kg7 {[%clk 0:02:28]} 28. Bc2 {[%clk 0:02:27]}  Rb8 {[%clk 0:02:27]} 29. Bd3 {[%clk 0:02:13]}  Rbb6 {[%clk 0:02:25]} 30. Kf1 {[%clk 0:02:10]}  h5 {[%clk 0:02:15]} 31. h4 {[%clk 0:02:09]}  Kf8 {[%clk 0:02:08]} 32. Ke2 {[%clk 0:02:09]}  Ke7 {[%clk 0:02:08]} 33. Kf3 {[%clk 0:02:10]}  Kd7 {[%clk 0:02:07]} 34. g4 {[%clk 0:02:10]}  hxg4+ {[%clk 0:02:07]} 35. Kxg4 {[%clk 0:02:11]}  Nc7 {[%clk 0:02:02]} 36. h5 {[%clk 0:02:08]}  Ke7 {[%clk 0:01:55]} 37. Rxc7+ {[%clk 0:02:06]} 1-0

[Event "December 5 Late 2023"]
[Site "https://www.chess.com"]
[Date "2023.12.05"]
[Round "8"]
[White "Agibileg, Uurtsaikh"]
[Black "Kraiouchkine, Nikita"]
[Result "0-1"]
[Board "52"]
[TimeControl "180+1"]
[WhiteFideId "4901606"]
[BlackFideId "2607140"]
[WhiteElo "2625"]
[BlackElo "2481"]
[WhiteTeam "MGL"]
[BlackTeam "CAN"]
[WhiteClock "0:00:00"]
[BlackClock "0:00:04"]

1. d4 {[%clk 0:02:51]}  d5 {[%clk 0:02:58]} 2. c4 {[%clk 0:02:50]}  c6 {[%clk 0:02:54]} 3. Nf3 {[%clk 0:02:49]}  Nf6 {[%clk 0:02:53]} 4. Nc3 {[%clk 0:02:44]}  dxc4 {[%clk 0:02:52]} 5. g3 {[%clk 0:02:41]}  e6 {[%clk 0:02:33]} 6. Ne5 {[%clk 0:02:35]}  b5 {[%clk 0:02:12]} 7. Bg2 {[%clk 0:02:33]}  Nd5 {[%clk 0:02:13]} 8. O-O {[%clk 0:02:18]}  Be7 {[%clk 0:02:03]} 9. e4 {[%clk 0:02:17]}  Nxc3 {[%clk 0:02:02]} 10. bxc3 {[%clk 0:02:18]}  Bb7 {[%clk 0:01:55]} 11. a4 {[%clk 0:02:16]}  Nd7 {[%clk 0:01:51]} 12. f4 {[%clk 0:01:44]}  Nxe5 {[%clk 0:01:28]} 13. fxe5 {[%clk 0:01:45]}  O-O {[%clk 0:01:29]} 14. h4 {[%clk 0:01:39]}  b4 {[%clk 0:01:17]} 15. cxb4 {[%clk 0:01:35]}  Bxb4 {[%clk 0:01:16]} 16. Be3 {[%clk 0:01:32]}  c5 {[%clk 0:00:59]} 17. d5 {[%clk 0:01:32]}  Bc3 {[%clk 0:00:49]} 18. Rc1 {[%clk 0:01:26]}  Bxe5 {[%clk 0:00:46]} 19. Bxc5 {[%clk 0:01:26]}  Bd6 {[%clk 0:00:32]} 20. Bxd6 {[%clk 0:01:18]}  Qxd6 {[%clk 0:00:33]} 21. Rxc4 {[%clk 0:00:56]}  exd5 {[%clk 0:00:34]} 22. exd5 {[%clk 0:00:56]}  Qxg3 {[%clk 0:00:34]} 23. Rg4 {[%clk 0:00:48]}  Qd6 {[%clk 0:00:26]} 24. Kh1 {[%clk 0:00:36]}  f6 {[%clk 0:00:22]} 25. h5 {[%clk 0:00:26]}  Rad8 {[%clk 0:00:17]} 26. h6 {[%clk 0:00:23]}  g6 {[%clk 0:00:17]} 27. Rd4 {[%clk 0:00:19]}  Qe5 {[%clk 0:00:16]} 28. Qd2 {[%clk 0:00:15]}  Rfe8 {[%clk 0:00:11]} 29. Rb1 {[%clk 0:00:11]}  Qh5+ {[%clk 0:00:10]} 30. Kg1 {[%clk 0:00:10]}  Re2 {[%clk 0:00:10]} 31. Qa5 {[%clk 0:00:08]}  Rde8 {[%clk 0:00:07]} 32. Qc7 {[%clk 0:00:04]}  R2e7 {[%clk 0:00:06]} 33. Qg3 {[%clk 0:00:02]}  Rd7 {[%clk 0:00:03]} 34. Bf3 {[%clk 0:00:02]}  Qe5 {[%clk 0:00:04]} 35. Qxe5 {[%clk 0:00:02]}  fxe5 {[%clk 0:00:05]} 36. Rdd1 {[%clk 0:00:01]}  e4 {[%clk 0:00:05]} 37. Re1 {[%clk 0:00:02]}  Bxd5 {[%clk 0:00:04]} 38. Bg4 {[%clk 0:00:02]}  Rd6 {[%clk 0:00:04]} 39. Rbd1 {[%clk 0:00:02]}  Re5 {[%clk 0:00:04]} 40. Rd4 {[%clk 0:00:00]}  Rg5 {[%clk 0:00:04]} 0-1